bitfinex/quotes_BTCUSD_20250324
["timestamp","ask_amount","ask_price","bid_price","bid_amount"]
[1742829834992,0.48064464,88314.0,88313.0,0.10068808]
[1742829835598,0.23779,88313.0,88312.0,0.0003396]
[1742829835879,0.35204764,88313.0,88312.0,0.0003396]
[1742829836539,0.65204764,88313.0,88312.0,0.0003396]
[1742829837937,0.65504764,88313.0,88312.0,0.0003396]
[1742829839471,0.78640764,88313.0,88312.0,0.0003396]
[1742829840571,0.65504764,88313.0,88312.0,0.0003396]
[1742829841627,0.65504764,88313.0,88280.0,0.41823841]
[1742829841628,0.237873,88282.0,88280.0,0.0003396]
[1742829843041,0.011327,88281.0,88280.0,0.0003396]
[1742829843259,0.50058464,88281.0,88280.0,0.0003396]
[1742829844886,0.50458464,88281.0,88280.0,0.0003396]
[1742829845152,0.50458464,88281.0,88252.0,0.226621]
[1742829845153,0.237916,88266.0,88252.0,0.226621]
[1742829845397,0.35217364,88266.0,88265.0,0.00012353]
[1742829847432,0.35317364,88266.0,88265.0,0.00012353]
[1742829847704,0.39957364,88266.0,88265.0,0.00012353]
[1742829847965,0.47607364,88266.0,88265.0,0.00012353]
[1742829848689,0.47507364,88266.0,88265.0,0.00012353]
[1742829848919,0.47907364,88266.0,88265.0,0.00012353]
[1742829850103,0.226625,88252.0,88248.0,0.22473318]
[1742829850301,0.237956,88252.0,88248.0,0.22473318]
[1742829850509,0.226625,88252.0,88246.0,0.226638]
[1742829850741,0.01133,88259.0,88243.0,0.0003394]
[1742829850742,0.011329,88264.0,88255.0,0.226614]
[1742829850929,0.004,88266.0,88249.0,0.011331]
[1742829851263,0.237909,88269.0,88250.0,0.092031]
[1742829851391,0.230587,88266.0,88250.0,0.21214]
[1742829851598,0.237925,88263.0,88258.0,0.226606]
[1742829851800,0.226598,88262.0,88259.0,0.226605]
[1742829852014,0.011329,88264.0,88258.0,0.226606]
[1742829852015,0.014329,88264.0,88260.0,0.226603]
[1742829852221,0.011328,88274.0,88267.0,0.226584]
[1742829852416,0.237892,88276.0,88269.0,0.226578]
[1742829852729,0.237895,88274.0,88270.0,0.226577]
[1742829853147,0.226587,88266.0,88265.0,0.0003396]
[1742829853350,0.237916,88266.0,88265.0,0.0003396]
[1742829853958,0.44847054,88266.0,88265.0,0.0003396]
[1742829854159,0.53017054,88266.0,88265.0,0.0003396]
[1742829854277,0.43387364,88266.0,88265.0,0.0003396]
[1742829854902,0.43487364,88266.0,88265.0,0.0003396]
[1742829855073,0.43387364,88266.0,88265.0,0.0003396]
[1742829855499,0.43687364,88266.0,88265.0,0.0003396]
[1742829856035,0.35517364,88266.0,88265.0,0.0003396]
[1742829857731,0.83357213,88266.0,88265.0,0.0003396]
[1742829857930,0.71931449,88266.0,88265.0,0.0003396]
[1742829858376,1.23251449,88266.0,88265.0,6e-07]
[1742829858549,0.237976,88244.0,88243.0,0.0003394]
[1742829858730,0.35223364,88244.0,88243.0,0.0003394]
[1742829859377,0.35677464,88244.0,88243.0,0.0003394]
[1742829859617,0.43177464,88244.0,88243.0,0.0003394]
[1742829861023,0.35677464,88244.0,88243.0,0.0003394]
[1742829861378,0.35877464,88244.0,88243.0,0.0003394]
[1742829862007,0.244517,88244.0,88243.0,0.0003394]
[1742829862312,0.2555694,88244.0,88243.0,0.0003394]
[1742829862538,0.0130524,88244.0,88243.0,0.0003394]
[1742829862680,0.0243844,88244.0,88243.0,0.0003394]
[1742829862872,0.2510284,88244.0,88243.0,0.0003394]
[1742829866594,0.36528604,88244.0,88243.0,0.0003394]
[1742829867243,0.47320494,88244.0,88243.0,0.0003394]
[1742829867519,0.36528604,88244.0,88243.0,0.0003394]
[1742829868946,0.66528604,88244.0,88243.0,0.0003394]
[1742829869146,0.72572689,88244.0,88243.0,0.0003394]
[1742829870446,0.57047645,88243.0,88242.0,0.000339]
[1742829870643,0.67973409,88243.0,88242.0,0.000339]
[1742829871287,0.68473409,88243.0,88242.0,0.000339]
[1742829872810,0.68973409,88243.0,88242.0,0.000339]
[1742829873364,0.67677649,88243.0,88242.0,0.000339]
[1742829873563,0.79103413,88243.0,88242.0,0.000339]
[1742829874359,0.79103413,88243.0,88228.0,0.000339]
[1742829874360,0.238016,88229.0,88228.0,0.000339]
[1742829874477,0.48375364,88229.0,88228.0,0.00046256]
[1742829875016,0.78375364,88229.0,88228.0,0.00046256]
[1742829876101,0.79829449,88229.0,88228.0,0.00046256]
[1742829876305,0.538024,88226.0,88225.0,0.0003394]
[1742829876553,0.65228164,88226.0,88225.0,0.0003394]
[1742829877328,0.66682249,88226.0,88225.0,0.0003394]
[1742829877649,0.66882249,88226.0,88225.0,0.0003394]
[1742829878579,0.66682249,88226.0,88225.0,0.0003394]
[1742829878992,0.78108013,88226.0,88225.0,0.0003394]
[1742829879166,0.66682249,88226.0,88225.0,0.0003394]
[1742829879343,0.65228164,88226.0,88225.0,0.0003394]
[1742829879956,0.65428164,88226.0,88225.0,0.0003394]
[1742829880188,0.78376164,88226.0,88225.0,0.0003394]
[1742829880563,0.78876164,88226.0,88225.0,0.0003394]
[1742829880782,0.243024,88226.0,88225.0,0.0003394]
[1742829881387,0.005,88226.0,88225.0,0.2270324]
[1742829881553,0.005,88226.0,88225.0,0.0003394]
[1742829881755,0.23169,88226.0,88225.0,0.0003394]
[1742829882013,0.23169,88226.0,88225.0,0.2270324]
[1742829882014,0.005,88226.0,88225.0,0.2270324]
[1742829882217,0.005,88226.0,88225.0,0.35489078]
[1742829882421,0.01249444,88228.0,88227.0,0.238021]
[1742829882646,0.01249444,88228.0,88227.0,0.86025864]
[1742829883241,0.01249444,88228.0,88227.0,0.87183177]
[1742829884650,0.01249444,88228.0,88227.0,1.26682345]
[1742829885019,0.01249444,88228.0,88227.0,1.15256581]
[1742829885654,0.01249444,88228.0,88227.0,0.85256581]
[1742829886280,0.01249444,88228.0,88227.0,0.226687]
[1742829888040,0.01249444,88228.0,88227.0,0.22031734]
[1742829888381,0.01249444,88228.0,88227.0,0.22048724]
[1742829889460,0.01249444,88228.0,88227.0,0.22148724]
[1742829892240,0.23917944,88228.0,88227.0,0.0011699]
[1742829892443,0.25051344,88228.0,88227.0,0.0011699]
[1742829895787,0.25051344,88228.0,88227.0,0.0001699]
[1742829896359,0.25151344,88228.0,88227.0,0.0001699]
[1742829899310,0.36577108,88228.0,88227.0,0.0001699]
[1742829900506,0.25051344,88228.0,88227.0,0.0001699]
[1742829900909,0.25151344,88228.0,88227.0,0.0001699]
[1742829901121,0.25185304,88228.0,88227.0,0.0001699]
[1742829902178,0.36611068,88228.0,88227.0,0.0001699]
[1742829903955,0.66611068,88228.0,88227.0,0.0001699]
[1742829904135,0.85576832,88228.0,88227.0,0.0001699]
[1742829904318,0.87030917,88228.0,88227.0,0.0001699]
[1742829904518,0.87030917,88228.0,88220.0,7e-07]
[1742829904519,0.3,88221.0,88220.0,7e-07]
[1742829904715,0.79827649,88221.0,88220.0,7e-07]
[1742829904923,0.82827649,88221.0,88220.0,7e-07]
[1742829905138,0.238062,88212.0,88192.0,0.0003396]
[1742829905340,0.36686049,88212.0,88211.0,0.00212358]
[1742829907477,0.37086049,88212.0,88211.0,0.00212358]
[1742829907671,0.37946132,88212.0,88211.0,5.8e-07]
[1742829907905,0.53929045,88212.0,88211.0,5.8e-07]
[1742829908256,0.56228047,88212.0,88211.0,5.8e-07]
[1742829909200,0.86728047,88212.0,88211.0,5.8e-07]
[1742829909381,1.27548047,88212.0,88211.0,5.8e-07]
[1742829910371,1.35418047,88212.0,88211.0,5.8e-07]
[1742829910776,1.35018047,88212.0,88211.0,5.8e-07]
[1742829911160,1.35418047,88212.0,88211.0,5.8e-07]
[1742829911371,1.35018047,88212.0,88211.0,5.8e-07]
[1742829912470,1.23895134,88212.0,88211.0,5.8e-07]
[1742829912874,1.24395134,88212.0,88211.0,5.8e-07]
[1742829913071,1.24395134,88212.0,88211.0,0.00017038]
[1742829913319,1.23895134,88212.0,88211.0,0.00017038]
[1742829913537,1.24395134,88212.0,88211.0,0.00017038]
[1742829913746,1.35820898,88212.0,88211.0,0.00017038]
[1742829914135,1.35820898,88212.0,88211.0,0.00157176]
[1742829914348,1.35820898,88212.0,88211.0,7.6e-07]
[1742829914542,1.35820898,88212.0,88192.0,0.0003396]
[1742829914543,0.238113,88193.0,88192.0,0.0003396]
[1742829914721,0.369553,88193.0,88192.0,0.00075179]
[1742829916325,0.372553,88193.0,88192.0,0.00075179]
[1742829916501,0.38364688,88193.0,88192.0,0.00075179]
[1742829917676,0.49790452,88193.0,88192.0,0.00075179]
[1742829918312,0.61216216,88193.0,88192.0,0.00075179]
[1742829918653,0.49790452,88193.0,88192.0,0.00075179]
[1742829920704,0.52066128,88193.0,88192.0,0.00075179]
[1742829922195,0.53520213,88193.0,88192.0,0.00075179]
[1742829922500,0.83520213,88193.0,88192.0,0.00075179]
[1742829922648,0.94945977,88193.0,88192.0,0.00075179]
[1742829923541,1.03025977,88193.0,88192.0,0.00075179]
[1742829923991,1.03025977,88193.0,88192.0,7.9e-07]
[1742829924162,1.05525977,88193.0,88192.0,7.9e-07]
[1742829924567,0.91600213,88193.0,88192.0,7.9e-07]
[1742829924842,0.94100213,88193.0,88192.0,7.9e-07]
[1742829925568,1.35420213,88193.0,88192.0,5.9e-07]
[1742829925769,1.39950213,88193.0,88192.0,5.9e-07]
[1742829925973,1.51375977,88193.0,88192.0,5.9e-07]
[1742829926375,1.51375977,88193.0,88178.0,0.0132153]
[1742829926376,0.31134,88182.0,88178.0,0.0132153]
[1742829926587,0.66694949,88179.0,88178.0,0.01333898]
[1742829926940,0.67529594,88179.0,88178.0,0.01333898]
[1742829927338,0.78955358,88179.0,88178.0,0.01333898]
[1742829927710,0.67529594,88179.0,88178.0,0.01333898]
[1742829927930,0.67529594,88179.0,88154.0,0.0001698]
[1742829927931,0.238216,88155.0,88154.0,0.0001698]
[1742829928129,0.35247364,88155.0,88154.0,0.0001698]
[1742829930054,0.35647364,88155.0,88154.0,0.0001698]
[1742829930251,0.36363048,88155.0,88154.0,0.0001698]
[1742829930837,0.36663048,88155.0,88154.0,0.0001698]
[1742829931212,0.48088812,88155.0,88154.0,0.0001698]
[1742829931891,0.36663048,88155.0,88154.0,0.0001698]
[1742829932381,0.49811048,88155.0,88154.0,0.0001698]
[1742829933212,0.52136376,88155.0,88154.0,0.0001698]
[1742829936110,0.52136376,88155.0,88154.0,0.3047448]
[1742829936111,0.01415684,88155.0,88154.0,0.3047448]
[1742829936329,0.25237284,88155.0,88154.0,0.0778698]
[1742829937149,0.24937284,88155.0,88154.0,0.0778698]
[1742829937462,0.24937284,88155.0,88154.0,0.0001698]
[1742829937748,0.25037284,88155.0,88154.0,0.0001698]
[1742829937898,0.36463048,88155.0,88154.0,0.0001698]
[1742829938867,0.42787646,88155.0,88154.0,0.0001698]
[1742829939248,0.36463048,88155.0,88154.0,0.0001698]
[1742829942280,0.36463048,88155.0,88154.0,0.2270448]
[1742829942281,0.01215684,88155.0,88154.0,0.2270448]
[1742829942487,0.23902984,88155.0,88154.0,0.0001698]
[1742829943221,0.36463048,88155.0,88154.0,0.0001698]
[1742829948853,0.12641448,88155.0,88154.0,0.0001698]
[1742829949072,0.35328748,88155.0,88154.0,0.0001698]
[1742829950662,0.44987003,88155.0,88154.0,0.0001698]
[1742829951982,0.36463048,88155.0,88154.0,0.0001698]
[1742829956953,0.48476748,88155.0,88154.0,0.0001698]
[1742829957296,0.49611048,88155.0,88154.0,0.0001698]
[1742829957647,0.49511048,88155.0,88154.0,0.0001698]
[1742829957843,0.49811048,88155.0,88154.0,0.0001698]
[1742829959443,0.12841448,88155.0,88154.0,0.2270448]
[1742829959647,0.12841448,88155.0,88154.0,0.3040448]
[1742829959648,0.01415684,88155.0,88154.0,0.3040448]
[1742829960488,0.003,88155.0,88154.0,0.3040448]
[1742829960691,0.003,88155.0,88154.0,0.3630878]
[1742829961321,0.003,88155.0,88154.0,0.3517448]
[1742829961518,0.003,88155.0,88154.0,0.3040448]
[1742829961739,0.003,88155.0,88154.0,0.2270448]
[1742829962019,0.003,88155.0,88154.0,0.0001698]
[1742829962227,0.003,88155.0,88154.0,0.2270448]
[1742829962646,0.226868,88157.0,88154.0,0.2270448]
[1742829962866,0.011343,88155.0,88154.0,0.0001698]
[1742829963063,0.42607034,88155.0,88154.0,0.0001698]
[1742829963359,0.42507034,88155.0,88154.0,0.0001698]
[1742829965927,0.35247364,88155.0,88154.0,0.0001698]
[1742829970175,0.48391364,88155.0,88154.0,0.0001698]
[1742829971209,0.35247364,88155.0,88154.0,0.0001698]
[1742829971363,0.48391364,88155.0,88154.0,0.0001698]
[1742829971531,0.48691364,88155.0,88154.0,0.0001698]
[1742829971731,0.60117128,88155.0,88154.0,0.0001698]
[1742829971931,0.48691364,88155.0,88154.0,0.0001698]
[1742829972696,0.35547364,88155.0,88154.0,0.0001698]
[1742829972949,0.48691364,88155.0,88154.0,0.0001698]
[1742829973915,0.35547364,88155.0,88154.0,0.0001698]
[1742829974436,0.48691364,88155.0,88154.0,0.0001698]
[1742829974649,0.35547364,88155.0,88154.0,0.0001698]
[1742829975004,0.48691364,88155.0,88154.0,0.0001698]
[1742829975616,0.003,88155.0,88154.0,0.2270448]
[1742829975815,0.003,88155.0,88154.0,0.2383878]
[1742829976023,0.003,88155.0,88154.0,0.2270448]
[1742829976630,0.003,88155.0,88154.0,0.0001698]
[1742829976631,0.226873,88155.0,88154.0,0.0001698]
[1742829976833,0.226869,88157.0,88154.0,0.0001698]
[1742829977029,0.001,88155.0,88154.0,0.0001698]
[1742829977251,0.001,88155.0,88154.0,0.2270448]
[1742829977818,0.226869,88157.0,88154.0,0.2270448]
[1742829978423,0.226872,88156.0,88154.0,0.0001698]
[1742829978573,0.34113064,88155.0,88154.0,0.0001698]
[1742829978781,0.11425764,88155.0,88154.0,0.2270448]
[1742829979791,0.11525764,88155.0,88154.0,0.2270448]
[1742829980355,0.001,88155.0,88154.0,0.2270448]
[1742829984925,0.001,88155.0,88154.0,0.2383878]
[1742829985080,0.001,88155.0,88154.0,0.2270448]
[1742829985575,0.11525764,88155.0,88154.0,0.0001698]
[1742829985775,0.3661336,88155.0,88154.0,0.0001698]
[1742829986426,0.4975736,88155.0,88154.0,0.0001698]
[1742829986878,0.5021196,88155.0,88154.0,0.0001698]
[1742829987244,0.52338203,88155.0,88154.0,0.0001698]
[1742829988065,0.83992288,88155.0,88154.0,0.0001698]
[1742829988412,0.91762288,88155.0,88154.0,8e-07]
[1742829988743,0.3,88141.0,88138.0,0.0001698]
[1742829988951,0.79115749,88139.0,88138.0,0.00029355]
[1742829991275,0.79115749,88139.0,88117.0,0.10117405]
[1742829991276,0.55284285,88123.0,88117.0,0.10117405]
[1742829991519,0.79854049,88123.0,88117.0,0.10117405]
[1742829991720,0.78399964,88123.0,88117.0,0.10117405]
[1742829991950,0.65255964,88123.0,88117.0,0.10117405]
[1742829992149,0.35255964,88123.0,88117.0,0.10117405]
[1742829993722,0.35555964,88123.0,88117.0,0.10117405]
[1742829993926,0.35255964,88123.0,88117.0,7e-05]
[1742829994133,0.36371201,88123.0,88117.0,7e-05]
[1742829994308,0.36571201,88123.0,88117.0,7e-05]
[1742829994712,0.36871201,88123.0,88117.0,7e-05]
[1742829995461,0.36571201,88123.0,88117.0,7e-05]
[1742829995667,0.36771201,88123.0,88117.0,7e-05]
[1742829995818,0.12941001,88123.0,88118.0,0.226967]
[1742829996024,0.01315237,88123.0,88117.0,7e-05]
[1742829996230,0.01315237,88123.0,88121.0,0.22896]
[1742829996430,0.01115237,88123.0,88121.0,0.22896]
[1742829996695,0.0123252,88122.0,88121.0,0.002]
[1742829997493,0.0236722,88122.0,88121.0,0.002]
[1742829998014,0.0123252,88122.0,88121.0,0.002]
[1742829998426,0.0236722,88122.0,88121.0,0.002]
[1742830000148,0.011347,88122.0,88121.0,0.002]
[1742830000354,0.23838166,88123.0,88121.0,0.002]
[1742830000564,0.01142566,88123.0,88121.0,0.228958]
[1742830000795,0.226947,88126.0,88123.0,0.226955]
[1742830001219,0.226947,88126.0,88121.0,0.228958]
[1742830001220,0.238294,88126.0,88121.0,0.228958]
[1742830001363,0.226953,88124.0,88121.0,0.228958]
[1742830001564,0.226958,88122.0,88121.0,0.002]
[1742830001820,0.35256264,88122.0,88121.0,0.002]
[1742830002198,0.45334277,88122.0,88121.0,0.002]
[1742830003186,0.35256264,88122.0,88121.0,0.002]
[1742830003759,0.011348,88118.0,88117.0,7e-05]
[1742830004261,0.238316,88118.0,88117.0,7e-05]
[1742830004748,0.010325,88121.0,88117.0,7e-05]
[1742830004987,0.226966,88119.0,88117.0,7e-05]
[1742830005187,0.11425764,88120.0,88117.0,0.00207]
[1742830005421,0.248633,88121.0,88118.0,0.226966]
[1742830005422,0.237285,88121.0,88118.0,0.226966]
[1742830005616,0.237285,88121.0,88117.0,7e-05]
[1742830005617,0.226967,88119.0,88117.0,7e-05]
[1742830005859,0.226968,88118.0,88117.0,7e-05]
[1742830006234,0.226967,88119.0,88117.0,7e-05]
[1742830006566,0.226968,88118.0,88117.0,0.00107]
[1742830007171,0.226967,88119.0,88117.0,0.00107]
[1742830007852,0.238316,88120.0,88117.0,7e-05]
[1742830008058,0.238305,88122.0,88117.0,0.22704]
[1742830008196,0.238305,88122.0,88117.0,0.22804]
[1742830008403,0.10145712,88183.0,88125.0,0.22695]
[1742830008404,0.22693,88133.0,88125.0,0.22695]
[1742830008648,0.22695,88126.0,88122.0,0.226955]
[1742830009078,0.226953,88124.0,88121.0,0.226955]
[1742830010198,0.226953,88124.0,88122.0,0.226957]
[1742830010601,0.226952,88124.0,88121.0,0.226955]
[1742830010855,0.001,88126.0,88125.0,0.315997]
[1742830011054,0.001,88126.0,88125.0,0.43025464]
[1742830011230,0.226896,88146.0,88138.0,0.315961]
[1742830011360,0.238243,88145.0,88138.0,0.304616]
[1742830011972,0.226902,88144.0,88138.0,0.304616]
[1742830012576,0.226899,88145.0,88138.0,0.304616]
[1742830013014,0.226896,88146.0,88138.0,0.304616]
[1742830013261,0.226899,88145.0,88138.0,0.304616]
[1742830013655,0.23824,88146.0,88138.0,0.304616]
[1742830014181,0.00112332,88139.0,88138.0,0.304616]
[1742830014529,0.00012332,88139.0,88138.0,0.304616]
[1742830015585,0.00012332,88139.0,88138.0,0.364061]
[1742830015857,0.00012332,88139.0,88138.0,0.365061]
[1742830016099,0.00012332,88139.0,88138.0,0.37646392]
[1742830016296,0.00012332,88139.0,88138.0,0.90862037]
[1742830016562,0.00012332,88139.0,88138.0,0.90762037]
[1742830017584,0.00012332,88139.0,88138.0,1.22052401]
[1742830017962,0.00012332,88139.0,88138.0,1.22252401]
[1742830018372,0.00012332,88139.0,88138.0,1.22052401]
[1742830018782,0.00012332,88139.0,88138.0,1.22452401]
[1742830019390,0.00012332,88139.0,88138.0,1.22052401]
[1742830019568,0.00012332,88139.0,88138.0,1.22452401]
[1742830020431,0.00012332,88139.0,88138.0,1.20703481]
[1742830021011,0.00012332,88139.0,88138.0,0.63448981]
[1742830021216,0.00112332,88139.0,88138.0,0.76988981]
[1742830021417,0.00112332,88139.0,88138.0,0.78123481]
[1742830021978,0.00012332,88139.0,88138.0,0.77723481]
[1742830022242,0.00012332,88139.0,88138.0,0.78023481]
[1742830026963,0.00012332,88139.0,88138.0,1.27399245]
[1742830027172,0.00012332,88139.0,88138.0,1.32349245]
[1742830027574,3.2e-07,88139.0,88138.0,1.32349245]
[1742830028137,3.2e-07,88139.0,88138.0,1.07783481]
[1742830028368,3.2e-07,88139.0,88138.0,1.20919481]
[1742830028577,0.00034032,88139.0,88138.0,0.90619481]
[1742830028958,0.00034032,88139.0,88138.0,0.90919481]
[1742830029310,0.00034032,88139.0,88138.0,0.77783481]
[1742830029534,0.00034032,88139.0,88138.0,0.63448981]
[1742830029906,0.00134032,88139.0,88138.0,0.63848981]
[1742830030037,0.00134032,88139.0,88138.0,0.220591]
[1742830030240,0.00134032,88139.0,88138.0,0.004]
[1742830030808,0.22825432,88139.0,88138.0,0.004]
[1742830030947,0.00134032,88139.0,88138.0,0.006]
[1742830031152,0.23859932,88139.0,88138.0,0.002]
[1742830031335,0.00034032,88139.0,88128.0,0.011347]
[1742830031535,0.22725632,88139.0,88138.0,0.006]
[1742830031756,0.23860132,88139.0,88138.0,0.006]
[1742830031969,0.23860132,88139.0,88138.0,0.002]
[1742830032410,0.23860132,88139.0,88138.0,0.005]
[1742830032792,0.23860132,88139.0,88138.0,0.002]
[1742830032997,0.36411239,88139.0,88138.0,0.002]
[1742830033219,0.36411239,88139.0,88138.0,0.003]
[1742830033583,0.36411239,88139.0,88138.0,0.001]
[1742830034203,0.36411239,88139.0,88138.0,0.002]
[1742830034382,0.226934,88132.0,88127.0,0.226943]
[1742830034727,0.226938,88130.0,88127.0,0.226943]
[1742830035136,0.00034032,88139.0,88138.0,0.238261]
[1742830035337,0.00034032,88139.0,88132.0,0.011346]
[1742830035591,0.00034032,88139.0,88137.0,0.226917]
[1742830035794,0.00034032,88139.0,88130.0,0.142706]
[1742830035795,0.22725632,88139.0,88130.0,0.13136]
[1742830036000,0.011346,88136.0,88129.0,0.358299]
[1742830036201,0.226924,88135.0,88131.0,0.226932]
[1742830036371,0.226928,88134.0,88130.0,0.226935]
[1742830036575,0.22693,88133.0,88130.0,0.226935]
[1742830036924,0.011346,88136.0,88129.0,0.13136]
[1742830037121,0.011346,88135.0,88127.0,0.001]
[1742830037323,0.011346,88135.0,88123.0,0.142707]
[1742830037498,0.011346,88131.0,88130.0,0.001]
[1742830037856,0.226937,88131.0,88130.0,0.001]
[1742830038057,0.226937,88131.0,88120.0,0.13136]
[1742830038211,0.226937,88130.0,88125.0,0.226948]
[1742830038384,0.238277,88133.0,88123.0,0.011347]
[1742830038646,0.226935,88131.0,88129.0,0.001]
[1742830039036,0.226922,88136.0,88133.0,0.226928]
[1742830039189,0.238261,88138.0,88133.0,0.226928]
[1742830039397,0.226919,88137.0,88133.0,0.226928]
[1742830039579,0.226919,88137.0,88132.0,0.226931]
[1742830039780,0.238261,88138.0,88133.0,0.226929]
[1742830039979,0.226916,88138.0,88134.0,0.226926]
[1742830040198,0.226921,88137.0,88134.0,0.226926]
[1742830040838,0.227921,88137.0,88134.0,0.226926]
[1742830041224,0.226921,88137.0,88134.0,0.226926]
[1742830041422,0.227921,88137.0,88134.0,0.226926]
[1742830041619,0.001,88137.0,88136.0,0.226922]
[1742830041823,0.001,88137.0,88135.0,0.226923]
[1742830042061,0.001,88137.0,88134.0,0.226926]
[1742830042259,0.001,88137.0,88106.0,0.993797]
[1742830042260,0.22693,88133.0,88129.0,0.226939]
[1742830042495,0.238274,88134.0,88130.0,0.226937]
[1742830042663,0.23827,88136.0,88123.0,0.011347]
[1742830042869,0.226924,88136.0,88125.0,0.0001699]
[1742830043071,0.226924,88136.0,88133.0,0.226929]
[1742830043505,0.226924,88136.0,88127.0,0.226944]
[1742830043506,0.226935,88131.0,88127.0,0.226944]
[1742830043715,0.226934,88132.0,88128.0,0.22694]
[1742830044074,0.001,88136.0,88132.0,0.226932]
[1742830044284,0.226929,88135.0,88131.0,0.226934]
[1742830044537,0.226931,88133.0,88130.0,0.226937]
[1742830045553,0.226931,88133.0,88131.0,0.226934]
[1742830046136,0.238275,88135.0,88131.0,0.226934]
[1742830046336,0.226929,88134.0,88131.0,0.226934]
[1742830046762,0.226929,88134.0,88132.0,0.226932]
[1742830046962,0.226929,88135.0,88133.0,0.226929]
[1742830047169,0.226922,88136.0,88134.0,0.226926]
[1742830047393,0.226925,88135.0,88131.0,0.226934]
[1742830047619,0.226925,88135.0,88132.0,0.226931]
[1742830048287,0.226928,88134.0,88132.0,0.226931]
[1742830048496,0.226925,88135.0,88132.0,0.226931]
[1742830049129,0.238272,88136.0,88131.0,0.226934]
[1742830049130,0.226928,88134.0,88131.0,0.226934]
[1742830049334,0.226929,88133.0,88131.0,0.226934]
[1742830049550,0.226928,88134.0,88132.0,0.226932]
[1742830049761,0.226928,88134.0,88131.0,0.226934]
[1742830049976,0.226927,88134.0,88131.0,0.226934]
[1742830050409,0.226929,88133.0,88130.0,0.226935]
[1742830050670,0.226927,88134.0,88131.0,0.226933]
[1742830051032,0.226929,88133.0,88130.0,0.226937]
[1742830051237,0.011346,88134.0,88125.0,0.0001699]
[1742830051442,0.238294,88126.0,88125.0,0.0001699]
[1742830051650,0.35255164,88126.0,88125.0,0.0001699]
[1742830053368,0.35455164,88126.0,88125.0,0.0001699]
[1742830054246,0.35655164,88126.0,88125.0,0.0001699]
[1742830057448,0.63135249,88126.0,88125.0,0.0001699]
[1742830058165,0.62935249,88126.0,88125.0,0.0001699]
[1742830058390,0.62735249,88126.0,88125.0,0.0001699]
[1742830058573,0.63235249,88126.0,88125.0,0.0001699]
[1742830059365,0.63635249,88126.0,88125.0,0.0001699]
[1742830060325,1.15815249,88126.0,88125.0,0.0001699]
[1742830063080,1.15815249,88126.0,88125.0,9e-07]
[1742830063281,0.538316,88118.0,88117.0,7.1e-05]
[1742830063495,0.66711449,88118.0,88117.0,7.1e-05]
[1742830065130,0.67111449,88118.0,88117.0,7.1e-05]
[1742830066412,0.67511449,88118.0,88117.0,7.1e-05]
[1742830068516,0.80647449,88118.0,88117.0,7.1e-05]
[1742830071845,0.80647449,88118.0,88117.0,1e-06]
[1742830072027,0.99788549,88118.0,88117.0,1e-06]
[1742830072451,0.98821849,88118.0,88117.0,1e-06]
[1742830072799,0.98421849,88118.0,88117.0,1e-06]
[1742830073211,0.98921849,88118.0,88117.0,1e-06]
[1742830073513,0.98521849,88118.0,88117.0,1e-06]
[1742830074063,0.88327449,88118.0,88117.0,1e-06]
[1742830074279,1.01037449,88118.0,88117.0,1e-06]
[1742830074481,1.00537449,88118.0,88117.0,1e-06]
[1742830074805,1.01037449,88118.0,88117.0,1e-06]
[1742830075129,1.01537449,88118.0,88117.0,1e-06]
[1742830075504,1.01037449,88118.0,88117.0,1e-06]
[1742830075705,1.01537449,88118.0,88117.0,1e-06]
[1742830077198,0.80421449,88118.0,88117.0,1e-06]
[1742830077555,0.80847449,88118.0,88117.0,1e-06]
[1742830078320,0.66257364,88118.0,88117.0,1e-06]
[1742830078595,0.12425764,88118.0,88117.0,1e-06]
[1742830078796,0.01,88118.0,88117.0,1e-06]
[1742830079393,0.2323074,88118.0,88117.0,1e-06]
[1742830079617,0.2436554,88118.0,88117.0,1e-06]
[1742830079843,0.2466554,88118.0,88117.0,1e-06]
[1742830080663,0.2416554,88118.0,88117.0,1e-06]
[1742830080991,0.2446554,88118.0,88117.0,1e-06]
[1742830081193,0.35591304,88118.0,88117.0,1e-06]
[1742830081620,0.35691304,88118.0,88117.0,1e-06]
[1742830081815,0.35391304,88118.0,88117.0,1e-06]
[1742830082230,0.35491304,88118.0,88117.0,1e-06]
[1742830082431,0.0023394,88118.0,88117.0,1e-06]
[1742830082707,0.2406554,88118.0,88117.0,1e-06]
[1742830083343,0.35491304,88118.0,88117.0,1e-06]
[1742830084759,0.66945389,88118.0,88117.0,1e-06]
[1742830084960,0.65491304,88118.0,88117.0,1e-06]
[1742830085381,0.35491304,88118.0,88117.0,1e-06]
[1742830085761,0.37656675,88118.0,88117.0,1e-06]
[1742830085965,0.37556675,88118.0,88117.0,1e-06]
[1742830086375,0.38156675,88118.0,88117.0,1e-06]
[1742830090159,0.3961076,88118.0,88117.0,1e-06]
[1742830090831,0.6961076,88118.0,88117.0,1e-06]
[1742830091244,0.7793076,88118.0,88117.0,1e-06]
[1742830092141,0.8214276,88118.0,88117.0,1e-06]
[1742830092352,0.8314276,88118.0,88117.0,1e-06]
[1742830096224,0.8314276,88118.0,88103.0,0.0001698]
[1742830096225,0.538354,88104.0,88103.0,8e-07]
[1742830096389,0.87497249,88104.0,88103.0,8e-07]
[1742830097088,0.89763519,88104.0,88103.0,8e-07]
[1742830097229,0.9192984,88104.0,88103.0,8e-07]
[1742830097653,0.9192984,88104.0,88103.0,0.0004134]
[1742830098259,0.9242984,88104.0,88103.0,0.0004134]
[1742830098427,0.9292984,88104.0,88103.0,0.0004134]
[1742830098660,0.9192984,88104.0,88103.0,4e-07]
[1742830098866,0.9242984,88104.0,88103.0,4e-07]
[1742830099150,0.9292984,88104.0,88103.0,4e-07]
[1742830103342,0.9292984,88104.0,88103.0,2e-07]
[1742830103562,0.7979784,88104.0,88103.0,2e-07]
[1742830103771,0.9293384,88104.0,88103.0,2e-07]
[1742830107777,0.9161234,88104.0,88103.0,2e-07]
[1742830114450,1.4563634,88104.0,88103.0,2e-07]
[1742830117433,1.3798634,88104.0,88103.0,2e-07]
[1742830122650,1.2485034,88104.0,88103.0,2e-07]
[1742830122948,1.3798234,88104.0,88103.0,2e-07]
[1742830123348,0.38527434,88104.0,88103.0,0.0799002]
[1742830123556,0.248354,88104.0,88103.0,0.0799002]
[1742830124494,0.243354,88104.0,88103.0,0.0799002]
[1742830124921,0.246354,88104.0,88103.0,0.0799002]
[1742830125981,0.241354,88104.0,88103.0,0.0799002]